bitfinex/quotes_SOLUSD_20240605
["timestamp","ask_amount","ask_price","bid_price","bid_amount"]
[1717553606045,2.1361,173.21,173.14,2.1369]
[1717553606241,17.117,173.24,173.14,2.1369]
[1717553606441,2.1361,173.21,173.14,2.1369]
[1717553606744,2.1362,173.2,173.14,2.1369]
[1717553606923,2.1362,173.2,173.13,2.137]
[1717553607555,20.0,173.23,173.08,10.6884]
[1717553607757,2.1365,173.18,173.11,2.1372]
[1717553607954,15.2922,173.22,173.06,8.7216]
[1717553607955,0.34,173.19,173.06,19.4112]
[1717553608180,2.1368,173.16,173.06,19.4112]
[1717553608453,2.1368,173.16,173.1,2.1374]
[1717553608653,2.1366,173.17,173.11,2.1373]
[1717553609255,2.1366,173.17,173.1,2.1374]
[1717553609657,0.34,173.19,173.09,2.1376]
[1717553609658,4.6129,173.19,173.09,2.1376]
[1717553609855,2.1367,173.16,173.09,2.1376]
[1717553610156,2.1368,173.15,173.08,2.1376]
[1717553611160,2.1368,173.15,173.09,2.1375]
[1717553611452,0.17,173.17,173.11,2.1372]
[1717553611660,2.1369,173.15,173.09,2.1374]
[1717553611867,2.1378,173.08,173.01,2.1384]
[1717553612361,2.1378,173.07,172.97,0.8184313]
[1717553612551,20.0,173.11,172.97,0.8184313]
[1717553612552,2.1377,173.08,173.01,2.1385]
[1717553612943,2.1377,173.08,173.02,2.1384]
[1717553613177,2.1377,173.08,173.01,2.1385]
[1717553613459,14.9636,173.09,172.98,2.1388]
[1717553613655,20.34,173.08,172.97,0.8184313]
[1717553614051,2.1379,173.07,173.01,2.1386]
[1717553614249,2.1379,173.07,173.0,2.1386]
[1717553614458,2.1379,173.07,173.01,2.1386]
[1717553614661,22.4777,173.08,173.01,2.1386]
[1717553614877,2.1378,173.07,173.01,2.1386]
[1717553616077,2.1379,173.06,173.0,2.1386]
[1717553616753,2.1379,173.07,173.0,2.1386]
[1717553617245,2.1379,173.07,173.01,2.1385]
[1717553617456,2.1379,173.07,173.0,2.1386]
[1717553617679,4.2757,173.07,172.98,2.1389]
[1717553617897,15.7918,173.01,172.97,0.8184313]
[1717553618223,19.2419,173.06,172.97,0.8184313]
[1717553618224,2.1389,172.98,172.97,0.8184313]
[1717553618348,24.3841,172.98,172.97,0.8184313]
[1717553618551,20.0,173.0,172.94,0.3846337]
[1717553618552,21.4586,172.97,172.94,0.3846337]
[1717553618784,20.0,173.0,172.94,0.3846337]
[1717553618785,6.4534,172.95,172.94,0.3846337]
[1717553619085,8.5927,172.95,172.94,0.3846337]
[1717553619273,26.4534,172.95,172.94,0.3846337]
[1717553619468,43.0348,172.95,172.94,0.3846337]
[1717553619669,45.3441,172.95,172.94,0.3846337]
[1717553620292,2.139,172.98,172.94,0.3846337]
[1717553620597,14.7184,173.02,172.94,0.3846337]
[1717553620598,6.1644,173.02,172.94,0.3846337]
[1717553620779,15.786,173.03,172.94,0.3846337]
[1717553620958,15.786,173.03,172.95,2.1393]
[1717553621156,15.786,173.03,172.94,0.3846337]
[1717553621358,6.1644,173.07,172.98,2.1389]
[1717553621867,6.1644,173.07,173.0,2.1386]
[1717553622480,8.3022,173.07,172.99,2.1388]
[1717553622862,8.3022,173.07,172.98,2.1389]
[1717553623077,6.1644,173.07,172.95,120.0]
[1717553623286,8.3023,173.07,172.98,2.1389]
[1717553623455,20.0,173.06,172.96,2.1391]
[1717553623656,20.0,173.06,172.94,0.3846337]
[1717553623964,2.1384,173.02,172.94,0.3846337]
[1717553624165,2.1384,173.02,172.94,2.5240337]
[1717553624370,2.1386,173.01,172.94,0.3846337]
[1717553625282,2.1387,173.0,172.94,0.3846337]
[1717553626781,0.17,173.03,172.94,0.3846337]
[1717553626782,2.1386,173.01,172.94,0.3846337]
[1717553627478,0.17,173.02,172.94,0.3846337]
[1717553627479,2.1387,173.0,172.94,0.3846337]
[1717553628086,2.1386,173.01,172.94,0.3846337]
[1717553628299,2.3085,173.02,172.94,2.5240337]
[1717553628798,2.1383,173.04,172.94,0.3846337]
[1717553629093,40.0,173.06,172.94,120.3846337]
[1717553629386,20.0,173.06,172.98,4.2779]
[1717553629596,20.0,173.06,173.04,2.1381]
[1717553630069,20.0,173.06,173.0,120.0]
[1717553630478,20.0,173.06,173.05,2.1381]
[1717553631863,20.0,173.06,173.05,21.449]
[1717553632056,20.0,173.06,173.05,21.619]
[1717553632263,20.0,173.06,173.05,37.2606]
[1717553632588,20.0,173.06,173.05,43.6749]
[1717553632792,10.6888,173.21,173.06,120.0]
[1717553632970,2.1365,173.18,173.11,2.1373]
[1717553633696,2.1366,173.17,173.1,2.1374]
[1717553634072,2.1365,173.18,173.11,2.1373]
[1717553634274,2.1364,173.19,173.12,2.1372]
[1717553634693,2.1365,173.18,173.11,2.1373]
[1717553635308,6.4164,173.21,173.12,2.1371]
[1717553635589,2.1364,173.19,173.13,2.1371]
[1717553635795,6.4164,173.21,173.13,2.1371]
[1717553635975,6.4164,173.21,173.12,2.1372]
[1717553636178,20.0,173.2,173.12,2.1372]
[1717553636367,2.1363,173.19,173.12,2.1372]
[1717553636705,22.1362,173.2,173.13,2.1371]
[1717553636870,22.1362,173.2,173.14,2.1369]
[1717553637069,22.1362,173.2,173.13,2.137]
[1717553638096,22.1362,173.2,173.14,2.1369]
[1717553638392,2.1363,173.19,173.12,2.1372]
[1717553638599,2.1365,173.18,173.1,120.0]
[1717553638784,2.1364,173.19,173.12,2.1371]
[1717553638987,2.1364,173.19,173.13,2.1371]
[1717553639191,20.0,173.2,173.08,380.3]
[1717553639369,0.17,173.19,173.08,124.2754]
[1717553639571,2.1364,173.19,173.13,2.1371]
[1717553640088,2.1364,173.19,173.09,4.2752]
[1717553640296,2.1364,173.19,173.13,2.137]
[1717553640485,2.1364,173.19,173.09,4.2752]
[1717553640486,2.1366,173.17,173.07,10.6889]
[1717553640693,2.1365,173.18,173.11,2.1372]
[1717553640897,2.3063,173.19,173.13,2.137]
[1717553641129,2.1365,173.18,173.12,2.1372]
[1717553641417,2.1366,173.17,173.11,2.1373]
[1717553641614,8.5465,173.17,173.06,380.3]
[1717553641920,20.17,173.16,173.08,2.1377]
[1717553642085,20.17,173.16,173.05,124.2761]
[1717553642086,2.1369,173.15,173.05,124.2761]
[1717553642289,2.1369,173.15,173.08,2.1376]
[1717553642517,2.1367,173.16,173.06,4.2758]
[1717553642829,20.0,173.17,173.07,120.0]
[1717553643115,2.1363,173.2,173.15,2.1368]
[1717553643327,8.5525,173.21,173.15,2.1368]
[1717553643489,2.1364,173.19,173.14,2.1369]
[1717553643811,2.1364,173.19,173.13,2.137]
[1717553644020,20.0,173.2,173.11,120.0]
[1717553644021,22.1363,173.2,173.14,2.1369]
[1717553644982,2.1364,173.19,173.13,2.137]
[1717553645191,20.0,173.2,173.13,2.137]
[1717553645428,2.1366,173.17,173.11,2.1373]
[1717553645721,2.1365,173.18,173.12,2.1372]
[1717553646086,2.1366,173.17,173.11,2.1373]
[1717553646313,24.2727,173.2,173.12,2.1371]
[1717553646493,2.1366,173.17,173.12,2.1371]
[1717553646694,2.1368,173.16,173.08,384.5754]
[1717553646898,2.1368,173.16,173.08,4.2754]
[1717553647102,2.1368,173.16,173.1,2.1374]
[1717553647319,6.41,173.17,173.06,500.3]
[1717553647493,2.137,173.14,173.08,2.1376]
[1717553647696,2.137,173.14,173.06,380.3]
[1717553647915,2.1369,173.15,173.09,2.1375]
[1717553648328,2.1369,173.15,173.1,2.1374]
[1717553648638,20.0,173.17,173.11,2.1373]
[1717553648639,2.1368,173.16,173.11,2.1373]
[1717553648834,20.34,173.19,173.07,4.2755]
[1717553649005,20.34,173.19,173.06,388.8518]
[1717553649006,6.4096,173.18,173.08,2.1377]
[1717553649208,2.137,173.14,173.08,2.1377]
[1717553650252,2.1371,173.13,173.08,2.1377]
[1717553650538,2.1371,173.13,173.06,380.3]
[1717553650752,20.0,173.15,173.06,380.3]
[1717553651053,0.34,173.14,173.01,6.3282]
[1717553651213,4.2744,173.12,173.03,2.1383]
[1717553651547,2.1378,173.08,173.02,2.1384]
[1717553651737,2.1378,173.08,173.0,10.6932]
[1717553652069,2.1376,173.09,173.03,2.1382]
[1717553652933,20.0,173.1,173.01,2.1384]
[1717553653232,20.0,173.1,173.0,2.1386]
[1717553653233,6.2572,173.05,173.0,2.1386]
[1717553653465,2.1382,173.04,172.98,2.1388]
[1717553653845,22.1381,173.05,172.99,2.1388]
[1717553654041,22.1381,173.05,172.94,161.3428337]
[1717553654042,2.1385,173.02,172.94,0.3846337]
[1717553654248,2.1386,173.01,172.95,2.1392]
[1717553654451,8.3958,173.01,172.95,2.1393]
[1717553654641,2.1387,173.0,172.94,2.5240337]
[1717553654843,22.1387,173.0,172.95,2.1393]
[1717553655353,6.3316,173.05,173.0,2.1386]
[1717553655539,8.4691,173.1,173.04,2.1381]
[1717553655739,20.0,173.09,173.03,2.1382]
[1717553655943,6.3316,173.07,173.02,2.1384]
[1717553656261,20.0,173.06,173.02,2.1384]
[1717553656455,22.138,173.06,173.0,2.1386]
[1717553656842,2.1381,173.05,173.0,2.1386]
[1717553657177,20.0,173.06,173.02,2.1384]
[1717553657354,20.0,173.07,173.01,2.1385]
[1717553657557,22.1379,173.07,173.01,2.1385]
[1717553657751,6.5841,173.06,172.97,2.139]
[1717553657964,14.9679,173.04,172.94,0.3846337]
[1717553658263,6.6105,173.01,172.97,2.139]
[1717553659463,8.7491,173.01,172.95,2.1392]
[1717553659666,20.0,173.0,172.96,2.1392]
[1717553659862,20.0,173.0,172.94,0.3846337]
[1717553659863,2.1388,172.99,172.94,2.5240337]
[1717553660170,6.6105,172.99,172.94,2.5240337]
[1717553660843,6.6105,172.99,172.95,2.1393]
[1717553661067,6.6105,172.99,172.94,0.3846337]
[1717553661368,6.6105,172.99,172.95,2.1393]
[1717553661666,15.5711,172.99,172.95,2.1393]
[1717553661872,6.6105,172.98,172.94,2.5240337]
[1717553662167,20.0,173.01,172.97,2.139]
[1717553662348,2.1385,173.02,172.94,4.6633337]
[1717553662349,20.0,173.02,172.94,4.6633337]
[1717553662549,17.709,173.07,172.97,120.0]
[1717553662885,8.7481,173.09,173.01,4.2771]
[1717553663166,6.6105,173.09,173.02,4.2768]
[1717553663468,8.7481,173.09,173.03,2.1382]
[1717553663663,8.7481,173.09,173.04,2.1381]
[1717553663972,2.1375,173.1,173.05,2.138]
[1717553664670,6.6105,173.13,173.04,126.4146]
[1717553664851,15.5711,173.15,173.04,126.4146]
[1717553664852,17.708,173.15,173.06,10.6898]
[1717553665051,24.1912,173.15,173.09,2.1375]
[1717553665252,2.137,173.14,173.09,2.1375]
[1717553665557,15.5711,173.15,173.08,2.1376]
[1717553665875,2.1371,173.13,173.08,2.1376]
[1717553666053,15.5711,173.15,173.09,2.1375]
[1717553666054,8.7349,173.14,173.09,2.1375]
[1717553666255,2.1367,173.16,173.1,2.1374]
[1717553666450,21.5676,173.18,173.06,130.6894]
[1717553666451,2.1366,173.17,173.07,14.9645]
[1717553666862,2.1366,173.17,173.12,2.1372]
[1717553667079,2.1368,173.16,173.1,2.1374]
[1717553667277,2.1368,173.16,173.11,2.1373]
[1717553667455,6.5979,173.18,173.11,2.1373]
[1717553667776,6.5979,173.18,173.07,4.2755]
[1717553667777,2.1369,173.15,173.07,4.2755]
[1717553667962,10.8709,173.18,173.07,2.1377]
[1717553667963,2.1371,173.13,173.07,2.1377]
[1717553668158,2.137,173.14,173.08,2.1376]
[1717553668657,2.1368,173.16,173.1,2.1374]
[1717553668860,0.34,173.17,173.09,2.1375]
[1717553669063,2.1368,173.15,173.09,2.1375]
[1717553669270,2.1368,173.15,173.1,2.1374]
[1717553669666,2.1368,173.15,173.09,2.1375]
[1717553669874,2.1368,173.15,173.1,2.1374]
[1717553671265,6.405,173.15,173.13,2.137]
[1717553671468,20.0,173.17,173.1,4.2748]
[1717553671672,22.1365,173.18,173.13,2.137]
[1717553671986,28.4559,173.18,173.13,2.137]
[1717553672186,2.1366,173.17,173.12,2.1372]
[1717553672484,26.3194,173.18,173.11,2.1372]
[1717553672485,2.1367,173.16,173.11,2.1372]
[1717553672787,2.1367,173.16,173.1,2.1374]
[1717553673375,2.1369,173.15,173.07,4.2755]
[1717553673580,26.3194,173.18,173.08,120.0]
[1717553673884,2.1366,173.17,173.12,2.1372]
[1717553674054,2.1366,173.17,173.09,4.2752]
[1717553674379,2.1367,173.17,173.11,2.1373]
[1717553674685,2.1367,173.16,173.1,2.1374]
[1717553675291,2.1367,173.16,173.11,2.1373]
[1717553675487,2.1366,173.17,173.12,2.1372]
[1717553675656,2.1367,173.16,173.11,2.1373]
[1717553677050,26.3194,173.18,173.11,2.1373]
[1717553677051,2.1366,173.17,173.11,2.1373]
[1717553677254,2.1366,173.17,173.12,2.1372]
[1717553677471,2.1366,173.17,173.11,2.1373]
[1717553677682,2.1367,173.16,173.1,2.1373]
[1717553677982,2.1368,173.15,173.1,2.1373]
[1717553678480,2.1367,173.16,173.11,2.1373]
[1717553678786,6.4392,173.15,173.08,124.2753]
[1717553678962,6.4392,173.15,173.1,2.1374]
[1717553679158,8.576,173.15,173.1,2.1374]
[1717553679866,2.1369,173.14,173.09,2.1375]
[1717553680879,2.1371,173.13,173.08,2.1376]
[1717553681056,6.0293,173.13,173.09,2.1376]
[1717553681253,2.1369,173.15,173.1,2.1374]
[1717553681478,6.6531,173.15,173.08,4.2753]
[1717553681664,8.7899,173.15,173.1,2.1374]
[1717553682080,6.6531,173.15,173.08,4.2753]
[1717553682265,8.7899,173.15,173.1,2.1374]
[1717553683160,8.7899,173.15,173.09,2.1375]
[1717553683484,8.7899,173.15,173.1,2.1374]
[1717553683663,39.2287,173.18,173.09,2.1375]
[1717553683664,2.137,173.14,173.09,2.1375]
[1717553683865,8.7901,173.14,173.09,2.1375]
[1717553684291,6.6531,173.14,173.1,2.1374]
[1717553685471,2.1368,173.16,173.11,2.1372]
[1717553685673,22.1367,173.16,173.11,2.1373]
[1717553685962,20.0,173.16,173.12,2.1372]
[1717553686361,2.1368,173.16,173.11,2.1373]
[1717553686582,22.1368,173.16,173.11,2.1373]
[1717553687487,22.1368,173.16,173.12,2.1372]
[1717553687673,22.1368,173.16,173.11,2.1373]
[1717553687874,2.137,173.14,173.09,2.1376]
[1717553688170,2.1371,173.13,173.07,382.4377]
[1717553688366,20.0,173.16,173.07,380.3]
[1717553688569,20.0,173.16,173.09,4.2751]
[1717553688781,2.137,173.14,173.07,384.5755]
[1717553688985,2.137,173.14,173.09,2.1375]
[1717553689165,8.6742,173.14,173.09,2.1375]
[1717553689878,8.6745,173.12,173.07,382.4377]
[1717553690978,6.5372,173.12,173.08,2.1377]
[1717553691691,8.6744,173.12,173.07,382.4378]
[1717553692061,6.5372,173.12,173.07,382.4378]
[1717553692388,6.4934,173.11,173.07,380.3]
[1717553692565,2.1375,173.1,173.07,380.3]
[1717553692766,8.6308,173.11,173.07,380.3]
[1717553693473,2.1374,173.11,173.07,380.3]
[1717553693677,8.7445,173.09,173.07,380.3]
[1717553694163,6.6069,173.09,173.07,380.3]
[1717553694986,8.7445,173.09,173.07,380.3]
[1717553695563,6.1773,173.08,173.07,380.3]
[1717553695765,8.315,173.08,173.07,380.3]
[1717553697199,2.1376,173.09,173.07,380.3]
[1717553697895,2.1376,173.09,173.03,2.1382]
[1717553698100,2.1377,173.08,173.03,2.1382]
[1717553700077,2.1377,173.08,173.04,2.1382]
[1717553700398,20.0,173.1,173.01,124.2771]
[1717553700399,2.1376,173.09,173.03,4.2766]
[1717553700690,2.1376,173.09,173.04,2.1381]
[1717553701321,6.1478,173.12,173.03,120.0]
[1717553701501,120.69692742,173.21,173.0,380.3]
[1717553701502,6.362,173.16,173.08,4.2754]
[1717553701809,6.362,173.16,173.11,2.1372]
[1717553701967,6.362,173.16,173.07,126.4135]
[1717553701968,6.5057,173.14,173.07,10.6891]
[1717553702170,8.6427,173.14,173.09,2.1376]
[1717553702477,2.1369,173.15,173.1,2.1374]
[1717553702691,2.1369,173.15,173.07,130.6891]
[1717553702692,8.6423,173.18,173.09,154.54]
[1717553702906,6.5057,173.18,173.13,2.137]
[1717553703386,6.5057,173.18,173.14,2.1369]
[1717553703591,4.2723,173.21,173.14,2.1369]
[1717553703803,2.1365,173.19,173.13,2.137]
[1717553704114,2.1365,173.19,173.14,2.1369]
[1717553704277,2.1365,173.18,173.13,2.137]
[1717553704783,8.4493,173.19,173.14,2.1369]
[1717553705205,20.0,173.18,173.14,2.1369]
[1717553705379,7.02389344,173.22,173.14,120.0]
[1717553705579,6.3129,173.2,173.18,2.1364]
[1717553705780,6.4746,173.23,173.15,4.2736]
[1717553705781,2.136,173.22,173.17,2.1365]
[1717553705980,2.1361,173.21,173.16,2.1367]
[1717553706596,2.1362,173.21,173.16,2.1367]
[1717553706805,2.1362,173.21,173.17,2.1366]
[1717553707183,2.136,173.22,173.17,2.1366]
[1717553707409,2.136,173.22,173.18,2.1364]
[1717553707708,2.136,173.22,173.17,2.1365]
[1717553708181,6.442,173.2,173.17,2.1365]
[1717553708394,6.442,173.2,173.13,429.7995]
[1717553708395,2.1363,173.2,173.15,2.1368]
[1717553708597,8.5783,173.19,173.15,2.1368]
[1717553709123,6.442,173.19,173.15,2.1368]
[1717553709424,2.1361,173.21,173.13,386.7112]
[1717553709593,8.578,173.22,173.14,126.4109]
[1717553709793,8.578,173.22,173.15,4.2736]
[1717553710110,6.442,173.22,173.16,4.2733]
[1717553710416,22.1359,173.23,173.16,4.2733]
[1717553710628,2.1359,173.23,173.19,2.1363]
[1717553710916,20.0,173.24,173.14,128.5475]
[1717553711131,30.6082,173.24,173.17,2.1365]
[1717553711308,2.1363,173.2,173.15,2.1367]
[1717553711492,2.1363,173.2,173.16,2.1366]
[1717553711828,8.4728,173.21,173.16,2.1366]
[1717553712211,8.4728,173.21,173.14,4.2739]
[1717553712896,6.3366,173.21,173.18,2.1364]
[1717553713895,8.4727,173.21,173.17,2.1366]
[1717553714096,6.3366,173.21,173.18,2.1364]
[1717553714399,6.3366,173.21,173.15,4.2737]
[1717553714400,6.3366,173.21,173.17,2.1365]
[1717553715223,2.136,173.22,173.18,2.1364]
[1717553715412,6.3355,173.22,173.15,6.4105]
[1717553715616,20.0,173.24,173.21,2.136]
[1717553715814,24.1534,173.25,173.21,2.1361]
[1717553716020,17.6134,173.25,173.2,2.1361]
[1717553716335,2.1357,173.24,173.2,2.1361]
[1717553716539,24.1534,173.25,173.21,2.1361]
[1717553716703,8.6757,173.25,173.21,2.1361]
[1717553717125,6.54,173.25,173.16,154.54]
[1717553717332,2.1353,173.28,173.21,4.2721]
[1717553717528,6.0936,173.28,173.25,2.1356]
[1717553717730,2.1352,173.28,173.24,2.1356]
[1717553718029,8.2288,173.29,173.25,2.1356]
[1717553718610,21.9523,173.31,173.27,2.1353]
[1717553718829,21.9523,173.31,173.25,4.2712]
[1717553719042,24.0872,173.31,173.27,2.1353]
[1717553719237,21.9523,173.31,173.28,2.1352]
[1717553719535,21.9523,173.31,173.28,2.1351]
[1717553719736,21.9523,173.31,173.29,2.1351]
[1717553719943,21.9523,173.31,173.29,2.135]
[1717553720112,21.9523,173.31,173.3,2.135]
[1717553720515,21.9523,173.31,173.28,4.2704]
[1717553720516,2.1344,173.35,173.31,2.1348]
[1717553721435,12.7501,173.38,173.3,4.27]
[1717553721644,8.4781,173.38,173.34,2.1344]
[1717553721942,6.3441,173.38,173.29,4.2701]
[1717553722106,2.1343,173.36,173.32,2.1347]
[1717553722942,8.2521,173.37,173.33,2.1346]
[1717553723534,6.1179,173.37,173.34,2.1344]
[1717553723731,2.134,173.38,173.34,2.1344]
[1717553724051,2.134,173.38,173.34,2.1345]
[1717553724550,2.1343,173.36,173.32,2.1347]
[1717553724722,2.1343,173.36,173.33,2.1346]
[1717553725223,2.1343,173.36,173.32,2.1347]
[1717553725530,2.1342,173.37,173.33,2.1346]
[1717553725927,2.1343,173.36,173.32,2.1347]
[1717553726631,6.5531,173.35,173.28,504.5705]
[1717553726833,2.1345,173.34,173.3,2.135]
[1717553727016,2.1345,173.34,173.29,2.135]
[1717553727017,2.1346,173.33,173.29,2.135]
[1717553727218,10.6722,173.35,173.26,4.2709]
[1717553727423,2.1347,173.33,173.29,2.135]
[1717553727622,8.358,173.33,173.29,2.135]
[1717553728845,2.1349,173.31,173.27,2.1353]
[1717553729154,6.5844,173.31,173.25,19.2205]
[1717553729314,6.5844,173.31,173.22,154.54]
[1717553729515,6.4808,173.3,173.26,2.1354]
[1717553729831,8.6158,173.3,173.26,2.1354]
[1717553730244,6.4808,173.3,173.24,14.95]
[1717553730540,6.4808,173.3,173.27,2.1352]
[1717553730745,32.8073,173.34,173.28,2.1352]
[1717553730746,24.2691,173.34,173.28,2.1352]
[1717553730932,2.1347,173.33,173.29,2.1351]
[1717553731831,20.0,173.34,173.31,2.1348]
[1717553732032,20.5286,173.38,173.3,120.0]
[1717553732033,16.2604,173.38,173.3,120.0]
[1717553732234,2.1339,173.39,173.35,2.1343]
[1717553732754,5.0860313,173.4,173.34,2.1344]
[1717553733059,2.1341,173.37,173.34,2.1345]
[1717553733348,2.1341,173.37,173.33,2.1345]
[1717553733928,2.134,173.38,173.34,2.1344]
[1717553734134,2.1339,173.39,173.35,2.1343]
[1717553734526,22.9522313,173.4,173.36,2.1342]
[1717553734721,0.8184313,173.4,173.35,154.54]
[1717553734941,0.8184313,173.4,173.39,2.1339]
[1717553735154,0.8184313,173.4,173.35,154.54]
[1717553735155,0.8184313,173.4,173.38,2.134]
[1717553735352,0.8184313,173.4,173.39,2.1339]
[1717553736733,0.8184313,173.4,173.38,2.134]
[1717553736946,0.8184313,173.4,173.36,2.1342]
[1717553737249,2.1339,173.39,173.35,2.1343]
[1717553737452,2.134,173.39,173.35,2.1344]
[1717553737651,0.8184313,173.4,173.36,2.1342]
[1717553737842,2.9522313,173.4,173.35,2.1343]
[1717553738357,2.1339,173.39,173.35,2.1343]
[1717553738740,8.3367,173.39,173.35,2.1343]
[1717553739759,2.1343,173.36,173.32,2.1347]
[1717553740264,2.1347,173.33,173.29,2.135]
[1717553741141,2.1347,173.33,173.28,380.3]
[1717553741142,2.135,173.31,173.28,380.3]
[1717553741364,16.3361,173.32,173.28,380.3]
[1717553741541,6.4856,173.31,173.28,380.3]
[1717553741742,2.135,173.3,173.28,380.3]
[1717553743260,8.6205,173.31,173.28,380.3]
[1717553743444,8.6205,173.31,173.26,2.1354]
[1717553743445,22.8217,173.29,173.18,414.84]
[1717553743636,4.2707,173.28,173.21,2.136]
[1717553744040,2.1355,173.26,173.21,2.136]
[1717553744240,2.1356,173.25,173.2,2.1362]
[1717553744460,2.1357,173.25,173.21,2.1361]
[1717553744664,2.1355,173.26,173.21,2.1361]
[1717553744845,8.5362,173.26,173.21,2.1361]
[1717553745354,8.5362,173.26,173.21,2.136]
[1717553746370,6.4007,173.26,173.23,2.1358]
[1717553746745,6.4007,173.26,173.22,2.1359]
[1717553747160,20.0,173.27,173.2,124.2724]
[1717553747380,20.0,173.28,173.22,120.0]
[1717553747540,6.0541,173.3,173.26,2.1354]
[1717553747541,20.0,173.29,173.26,2.1354]
[1717553747966,6.0541,173.3,173.26,2.1354]
[1717553748144,6.0541,173.3,173.27,2.1353]
[1717553748357,16.2407,173.33,173.25,124.271]
[1717553748670,2.1347,173.33,173.26,4.271]
[1717553749053,2.1347,173.33,173.29,2.135]
[1717553749258,2.1347,173.33,173.27,120.0]
[1717553749771,6.404,173.33,173.23,43.0835]
[1717553749946,2.1351,173.29,173.25,2.1356]
[1717553750147,10.6746,173.31,173.23,2.1358]
[1717553750347,2.1353,173.28,173.23,2.1358]
[1717553750852,34.9453,173.3,173.22,2.1359]
[1717553751070,6.4054,173.29,173.21,382.436]
[1717553751251,2.1356,173.25,173.21,382.436]
[1717553751654,15.2221,173.24,173.14,124.2738]
[1717553751852,2.1361,173.22,173.17,2.1365]
[1717553752052,20.0,173.23,173.17,2.1365]
[1717553752249,2.136,173.22,173.17,2.1365]
[1717553752874,22.1359,173.23,173.18,2.1364]
[1717553753048,20.0,173.23,173.19,2.1363]
[1717553753472,20.0,173.23,173.16,120.0]
[1717553753473,22.1359,173.23,173.18,2.1363]
[1717553753689,2.1359,173.23,173.19,2.1363]
[1717553753858,2.1358,173.24,173.19,2.1363]
[1717553754964,2.1359,173.23,173.18,2.1365]
[1717553755163,2.1358,173.24,173.19,2.1363]
[1717553756360,2.1359,173.23,173.18,2.1364]
[1717553757069,2.136,173.22,173.17,2.1365]
[1717553757381,2.1361,173.21,173.17,2.1365]
[1717553757570,2.1361,173.21,173.16,2.1366]
[1717553757967,2.1361,173.21,173.17,2.1366]
[1717553758179,2.136,173.22,173.17,2.1366]
[1717553758565,8.7729,173.22,173.17,2.1366]
[1717553758767,2.1361,173.21,173.17,2.1366]
[1717553758976,8.7729,173.22,173.18,2.1364]
[1717553759282,6.6369,173.22,173.18,2.1364]
[1717553759488,8.7729,173.22,173.18,2.1364]
[1717553759863,2.1361,173.21,173.17,2.1365]
[1717553761561,8.5184,173.2,173.14,4.2739]
[1717553761760,6.3821,173.2,173.17,2.1366]
[1717553761977,8.5181,173.22,173.18,2.1364]
[1717553762390,6.3821,173.22,173.17,120.0]
[1717553762564,20.0,173.23,173.2,2.1361]
[1717553762889,22.1356,173.25,173.2,2.1362]
[1717553763070,2.1358,173.24,173.2,2.1362]
[1717553763387,15.6663,173.27,173.19,120.0]
[1717553763581,2.1354,173.27,173.23,2.1358]
[1717553763761,20.0,173.27,173.21,130.6805]
[1717553763962,20.0,173.27,173.22,10.6799]
[1717553764187,6.2789,173.28,173.25,2.1355]